[Event "Titled Tuesday Blitz December 06 Late 2022"]
[White "Martinez Reyes, Pedro Ramon"]
[Black "Grot, Blazej"]
[WhiteFideId "3901807"]
[BlackFideId "21835845"]
[WhiteElo "2354"]
[BlackElo "1823"]
[Result "1-0"]
[Round "02"]
[TimeControl "180+1"]
[Date "2022.12.07"]
[WhiteClock "0:00:30"]
[BlackClock "0:00:02"]

1. f4 {[%clk 0:03:00]}  d5 {[%clk 0:02:59]} 2. Nf3 {[%clk 0:02:59]}  c6 {[%clk 0:02:59]} 3. e3 {[%clk 0:02:58]}  Nf6 {[%clk 0:03:00]} 4. b4 {[%clk 0:02:58]}  Qb6 {[%clk 0:03:00]} 5. a3 {[%clk 0:02:56]}  Bf5 {[%clk 0:02:59]} 6. c4 {[%clk 0:02:45]}  e6 {[%clk 0:02:59]} 7. Bb2 {[%clk 0:02:38]}  Nbd7 {[%clk 0:02:54]} 8. Nc3 {[%clk 0:02:33]}  Be7 {[%clk 0:02:50]} 9. Be2 {[%clk 0:02:32]}  dxc4 {[%clk 0:02:38]} 10. Bxc4 {[%clk 0:02:25]}  c5 {[%clk 0:02:39]} 11. b5 {[%clk 0:02:17]}  O-O {[%clk 0:02:29]} 12. a4 {[%clk 0:02:12]}  Qc7 {[%clk 0:02:17]} 13. O-O {[%clk 0:02:08]}  Bg4 {[%clk 0:02:16]} 14. h3 {[%clk 0:02:07]}  Bh5 {[%clk 0:02:15]} 15. Qb3 {[%clk 0:01:56]}  Nb6 {[%clk 0:01:59]} 16. Ne5 {[%clk 0:01:44]}  Nxc4 {[%clk 0:01:58]} 17. Qxc4 {[%clk 0:01:45]}  Rad8 {[%clk 0:01:55]} 18. Rf2 {[%clk 0:01:42]}  Bd6 {[%clk 0:01:53]} 19. g4 {[%clk 0:01:32]}  Bg6 {[%clk 0:01:53]} 20. Nxg6 {[%clk 0:01:31]}  hxg6 {[%clk 0:01:54]} 21. g5 {[%clk 0:01:27]}  Nd5 {[%clk 0:01:45]} 22. Ne4 {[%clk 0:01:23]}  Be7 {[%clk 0:01:30]} 23. h4 {[%clk 0:01:21]}  Rfe8 {[%clk 0:01:15]} 24. Kg2 {[%clk 0:01:21]}  Bd6 {[%clk 0:00:48]} 25. Raf1 {[%clk 0:01:10]}  Ne7 {[%clk 0:00:48]} 26. Rh1 {[%clk 0:01:07]}  Nf5 {[%clk 0:00:48]} 27. h5 {[%clk 0:01:07]}  gxh5 {[%clk 0:00:47]} 28. Rxh5 {[%clk 0:01:08]}  e5 {[%clk 0:00:39]} 29. fxe5 {[%clk 0:00:56]}  Bxe5 {[%clk 0:00:40]} 30. Rxf5 {[%clk 0:00:56]}  Bf6 {[%clk 0:00:19]} 31. Nxf6+ {[%clk 0:00:52]}  gxf6 {[%clk 0:00:16]} 32. Bxf6 {[%clk 0:00:53]}  Rxd2+ {[%clk 0:00:15]} 33. Kf1 {[%clk 0:00:38]}  Rd1+ {[%clk 0:00:13]} 34. Ke2 {[%clk 0:00:34]}  Rxe3+ {[%clk 0:00:12]} 35. Kxd1 {[%clk 0:00:32]}  Qd7+ {[%clk 0:00:08]} 36. Qd5 {[%clk 0:00:31]}  Rd3+ {[%clk 0:00:06]} 37. Kc1 {[%clk 0:00:30]}  Rxd5 {[%clk 0:00:02]} 38. Rh8# {[%clk 0:00:30]} 1-0


[Site "https://www.chess.com"]

[Event "Titled Tuesday Blitz December 06 Late 2022"]
[White "Mayaud, Raphael"]
[Black "Womacka, Mathias"]
[WhiteFideId "627151"]
[BlackFideId "4611390"]
[WhiteElo "2191"]
[BlackElo "2377"]
[Result "0-1"]
[Round "02"]
[TimeControl "180+1"]
[Date "2022.12.07"]
[WhiteClock "0:00:18"]
[BlackClock "0:00:02"]

1. d4 {[%clk 0:02:59]}  Nf6 {[%clk 0:02:58]} 2. Bg5 {[%clk 0:02:58]}  Ne4 {[%clk 0:02:57]} 3. Bf4 {[%clk 0:02:58]}  c5 {[%clk 0:02:56]} 4. f3 {[%clk 0:02:57]}  Qa5+ {[%clk 0:02:55]} 5. c3 {[%clk 0:02:57]}  Nf6 {[%clk 0:02:55]} 6. Nd2 {[%clk 0:02:57]}  cxd4 {[%clk 0:02:54]} 7. Nb3 {[%clk 0:02:57]}  Qd8 {[%clk 0:02:52]} 8. cxd4 {[%clk 0:02:57]}  e6 {[%clk 0:02:48]} 9. e4 {[%clk 0:02:46]}  Nc6 {[%clk 0:02:41]} 10. Be3 {[%clk 0:02:27]}  d5 {[%clk 0:02:37]} 11. e5 {[%clk 0:02:26]}  Nd7 {[%clk 0:02:35]} 12. f4 {[%clk 0:02:26]}  a5 {[%clk 0:02:27]} 13. Rc1 {[%clk 0:02:23]}  a4 {[%clk 0:02:25]} 14. Nc5 {[%clk 0:02:22]}  Nxc5 {[%clk 0:02:09]} 15. dxc5 {[%clk 0:02:22]}  d4 {[%clk 0:01:58]} 16. Bf2 {[%clk 0:02:22]}  Qd5 {[%clk 0:01:56]} 17. Nf3 {[%clk 0:02:16]}  Bxc5 {[%clk 0:01:52]} 18. Bd3 {[%clk 0:02:00]}  Bb4+ {[%clk 0:01:44]} 19. Ke2 {[%clk 0:01:58]}  Qxa2 {[%clk 0:01:36]} 20. Qc2 {[%clk 0:01:49]}  Qd5 {[%clk 0:01:15]} 21. Rhd1 {[%clk 0:01:43]}  Be7 {[%clk 0:01:03]} 22. Be4 {[%clk 0:01:32]}  Qb5+ {[%clk 0:01:02]} 23. Bd3 {[%clk 0:01:25]}  Qb6 {[%clk 0:00:59]} 24. Be4 {[%clk 0:00:46]}  Bd7 {[%clk 0:00:47]} 25. Bxc6 {[%clk 0:00:40]}  Bxc6 {[%clk 0:00:44]} 26. Bxd4 {[%clk 0:00:40]}  Qb5+ {[%clk 0:00:35]} 27. Qd3 {[%clk 0:00:38]}  O-O {[%clk 0:00:34]} 28. Qxb5 {[%clk 0:00:37]}  Bxb5+ {[%clk 0:00:35]} 29. Ke3 {[%clk 0:00:35]}  Rac8 {[%clk 0:00:33]} 30. Bc3 {[%clk 0:00:32]}  Rfd8 {[%clk 0:00:31]} 31. Nd4 {[%clk 0:00:32]}  Be8 {[%clk 0:00:27]} 32. Nc2 {[%clk 0:00:25]}  Bc6 {[%clk 0:00:25]} 33. g3 {[%clk 0:00:25]}  f6 {[%clk 0:00:17]} 34. Nb4 {[%clk 0:00:24]}  fxe5 {[%clk 0:00:15]} 35. Nxc6 {[%clk 0:00:25]}  Rxc6 {[%clk 0:00:12]} 36. Bxe5 {[%clk 0:00:17]}  Rxd1 {[%clk 0:00:11]} 37. Rxd1 {[%clk 0:00:16]}  Bf6 {[%clk 0:00:08]} 38. Bxf6 {[%clk 0:00:12]}  gxf6 {[%clk 0:00:09]} 39. Rd7 {[%clk 0:00:12]}  Rb6 {[%clk 0:00:08]} 40. Rd2 {[%clk 0:00:13]}  Kf7 {[%clk 0:00:07]} 41. Ke4 {[%clk 0:00:13]}  Kg6 {[%clk 0:00:07]} 42. h3 {[%clk 0:00:13]}  h5 {[%clk 0:00:06]} 43. Kf3 {[%clk 0:00:13]}  Rb3+ {[%clk 0:00:06]} 44. Kf2 {[%clk 0:00:12]}  h4 {[%clk 0:00:04]} 45. Re2 {[%clk 0:00:12]}  hxg3+ {[%clk 0:00:04]} 46. Kg2 {[%clk 0:00:12]}  Kf5 {[%clk 0:00:05]} 47. Rc2 {[%clk 0:00:11]}  Kxf4 {[%clk 0:00:05]} 48. Rc4+ {[%clk 0:00:11]}  Kf5 {[%clk 0:00:05]} 49. Rxa4 {[%clk 0:00:11]}  Rxb2+ {[%clk 0:00:05]} 50. Kxg3 {[%clk 0:00:12]}  e5 {[%clk 0:00:05]} 51. h4 {[%clk 0:00:11]}  Rb3+ {[%clk 0:00:05]} 52. Kg2 {[%clk 0:00:10]}  b5 {[%clk 0:00:06]} 53. Ra1 {[%clk 0:00:10]}  Kg4 {[%clk 0:00:06]} 54. Rf1 {[%clk 0:00:11]}  f5 {[%clk 0:00:06]} 55. h5 {[%clk 0:00:10]}  Rb2+ {[%clk 0:00:06]} 56. Kg1 {[%clk 0:00:10]}  f4 {[%clk 0:00:06]} 57. h6 {[%clk 0:00:10]}  Kg3 {[%clk 0:00:05]} 58. Rc1 {[%clk 0:00:09]}  Rg2+ {[%clk 0:00:04]} 59. Kf1 {[%clk 0:00:09]}  Rh2 {[%clk 0:00:04]} 60. Ke1 {[%clk 0:00:09]}  f3 {[%clk 0:00:04]} 61. Rc5 {[%clk 0:00:10]}  Rh1+ {[%clk 0:00:03]} 62. Kd2 {[%clk 0:00:10]}  Rxh6 {[%clk 0:00:03]} 63. Rxe5 {[%clk 0:00:10]}  f2 {[%clk 0:00:04]} 64. Rg5+ {[%clk 0:00:10]}  Kf4 {[%clk 0:00:03]} 65. Rg8 {[%clk 0:00:10]}  Rh5 {[%clk 0:00:02]} 66. Rg2 {[%clk 0:00:10]}  Kf3 {[%clk 0:00:02]} 67. Rxf2+ {[%clk 0:00:11]}  Kxf2 {[%clk 0:00:02]} 68. Kc3 {[%clk 0:00:12]}  Rd5 {[%clk 0:00:01]} 69. Kb4 {[%clk 0:00:13]}  Ke3 {[%clk 0:00:02]} 70. Kb3 {[%clk 0:00:14]}  Rd4 {[%clk 0:00:02]} 71. Kb2 {[%clk 0:00:14]}  Kd3 {[%clk 0:00:02]} 72. Kb3 {[%clk 0:00:15]}  Rc4 {[%clk 0:00:02]} 73. Kb2 {[%clk 0:00:15]}  Rb4+ {[%clk 0:00:02]} 74. Ka3 {[%clk 0:00:16]}  Kc3 {[%clk 0:00:02]} 75. Ka2 {[%clk 0:00:16]}  Kc2 {[%clk 0:00:02]} 76. Ka3 {[%clk 0:00:17]}  Rc4 {[%clk 0:00:02]} 77. Ka2 {[%clk 0:00:18]}  Ra4# {[%clk 0:00:02]} 0-1


[Site "https://www.chess.com"]

[Event "Titled Tuesday Blitz December 06 Late 2022"]
[White "Melkumyan, Hrant"]
[Black "Ambartsumova, Karina"]
[WhiteFideId "13302485"]
[BlackFideId "4166299"]
[WhiteElo "2604"]
[BlackElo "2319"]
[Result "1-0"]
[Round "02"]
[TimeControl "180+1"]
[Date "2022.12.06"]
[WhiteClock "0:00:19"]
[BlackClock "0:00:12"]

1. d4 {[%clk 0:02:56]}  Nf6 {[%clk 0:02:58]} 2. c4 {[%clk 0:02:54]}  g6 {[%clk 0:02:58]} 3. Nc3 {[%clk 0:02:52]}  Bg7 {[%clk 0:02:59]} 4. e4 {[%clk 0:02:52]}  O-O {[%clk 0:02:59]} 5. Be2 {[%clk 0:02:50]}  d6 {[%clk 0:02:59]} 6. h4 {[%clk 0:02:46]}  e5 {[%clk 0:02:56]} 7. d5 {[%clk 0:02:44]}  Na6 {[%clk 0:02:56]} 8. h5 {[%clk 0:02:38]}  Nc5 {[%clk 0:02:56]} 9. Bf3 {[%clk 0:02:33]}  c6 {[%clk 0:02:51]} 10. Nge2 {[%clk 0:02:29]}  cxd5 {[%clk 0:02:49]} 11. cxd5 {[%clk 0:02:29]}  a6 {[%clk 0:02:43]} 12. Ng3 {[%clk 0:02:28]}  b5 {[%clk 0:02:37]} 13. Be3 {[%clk 0:02:19]}  b4 {[%clk 0:02:32]} 14. Nce2 {[%clk 0:02:19]}  Qa5 {[%clk 0:02:32]} 15. b3 {[%clk 0:02:10]}  Bd7 {[%clk 0:02:28]} 16. O-O {[%clk 0:02:06]}  Qb5 {[%clk 0:02:18]} 17. Qd2 {[%clk 0:02:04]}  a5 {[%clk 0:02:17]} 18. Bg5 {[%clk 0:01:47]}  Rfc8 {[%clk 0:02:10]} 19. Rab1 {[%clk 0:01:38]}  Qa6 {[%clk 0:01:50]} 20. Rfc1 {[%clk 0:01:26]}  Bb5 {[%clk 0:01:49]} 21. Bh6 {[%clk 0:01:03]}  Bh8 {[%clk 0:01:32]} 22. Nf5 {[%clk 0:01:01]}  Re8 {[%clk 0:01:16]} 23. Neg3 {[%clk 0:00:57]}  Bd3 {[%clk 0:01:13]} 24. Rxc5 {[%clk 0:00:41]}  dxc5 {[%clk 0:01:09]} 25. Rc1 {[%clk 0:00:42]}  c4 {[%clk 0:00:50]} 26. bxc4 {[%clk 0:00:43]}  Bxc4 {[%clk 0:00:51]} 27. d6 {[%clk 0:00:43]}  Rad8 {[%clk 0:00:41]} 28. Qc2 {[%clk 0:00:32]}  Be6 {[%clk 0:00:31]} 29. Be2 {[%clk 0:00:28]}  Qb7 {[%clk 0:00:27]} 30. Qd2 {[%clk 0:00:18]}  Nxe4 {[%clk 0:00:24]} 31. Nxe4 {[%clk 0:00:16]}  Qxe4 {[%clk 0:00:25]} 32. Ne7+ {[%clk 0:00:17]}  Rxe7 {[%clk 0:00:18]} 33. dxe7 {[%clk 0:00:18]}  Re8 {[%clk 0:00:11]} 34. Qd8 {[%clk 0:00:18]}  Qa8 {[%clk 0:00:11]} 35. Qxa8 {[%clk 0:00:18]}  Rxa8 {[%clk 0:00:12]} 36. Rd1 {[%clk 0:00:19]} 1-0


[Site "https://www.chess.com"]

[Event "Titled Tuesday Blitz December 06 Late 2022"]
[White "Moksh Amit Doshi"]
[Black "Bazeev, German"]
[WhiteFideId "25064967"]
[BlackFideId "24119350"]
[WhiteElo "2546"]
[BlackElo "2773"]
[Result "0-1"]
[Round "02"]
[TimeControl "180+1"]
[Date "2022.12.07"]
[WhiteClock "0:00:16"]
[BlackClock "0:00:13"]

1. c4 {[%clk 0:02:50]}  e5 {[%clk 0:02:56]} 2. Nc3 {[%clk 0:02:50]}  Nf6 {[%clk 0:02:57]} 3. Nf3 {[%clk 0:02:50]}  Nc6 {[%clk 0:02:56]} 4. g3 {[%clk 0:02:48]}  Bb4 {[%clk 0:02:57]} 5. Bg2 {[%clk 0:02:48]}  Bxc3 {[%clk 0:02:56]} 6. bxc3 {[%clk 0:02:48]}  d6 {[%clk 0:02:55]} 7. O-O {[%clk 0:02:47]}  h6 {[%clk 0:02:56]} 8. d3 {[%clk 0:02:32]}  O-O {[%clk 0:02:44]} 9. Rb1 {[%clk 0:02:33]}  e4 {[%clk 0:02:39]} 10. Nd4 {[%clk 0:02:27]}  Re8 {[%clk 0:02:38]} 11. Qa4 {[%clk 0:02:11]}  Bd7 {[%clk 0:01:46]} 12. Qc2 {[%clk 0:02:02]}  Na5 {[%clk 0:01:39]} 13. dxe4 {[%clk 0:01:53]}  Nxc4 {[%clk 0:01:32]} 14. Rxb7 {[%clk 0:01:50]}  Nb6 {[%clk 0:01:31]} 15. e5 {[%clk 0:01:30]}  Rxe5 {[%clk 0:01:15]} 16. Bf4 {[%clk 0:01:19]}  Rc5 {[%clk 0:01:07]} 17. Nb3 {[%clk 0:01:07]}  Rc4 {[%clk 0:00:45]} 18. Nd2 {[%clk 0:00:47]}  Rxf4 {[%clk 0:00:45]} 19. gxf4 {[%clk 0:00:47]}  d5 {[%clk 0:00:45]} 20. c4 {[%clk 0:00:42]}  Bc6 {[%clk 0:00:43]} 21. Rxb6 {[%clk 0:00:38]}  axb6 {[%clk 0:00:44]} 22. Rc1 {[%clk 0:00:32]}  Ra7 {[%clk 0:00:33]} 23. e3 {[%clk 0:00:28]}  Qe8 {[%clk 0:00:23]} 24. c5 {[%clk 0:00:26]}  b5 {[%clk 0:00:16]} 25. Nb3 {[%clk 0:00:26]}  Bd7 {[%clk 0:00:13]} 26. c6 {[%clk 0:00:25]}  Be6 {[%clk 0:00:12]} 27. Nd4 {[%clk 0:00:25]}  Qa8 {[%clk 0:00:12]} 28. Nxb5 {[%clk 0:00:18]}  Rxa2 {[%clk 0:00:12]} 29. Qc5 {[%clk 0:00:19]}  Qa5 {[%clk 0:00:11]} 30. Nxc7 {[%clk 0:00:18]}  Qxc7 {[%clk 0:00:11]} 31. Qb5 {[%clk 0:00:16]}  Ra8 {[%clk 0:00:10]} 32. Qb7 {[%clk 0:00:16]}  Rc8 {[%clk 0:00:11]} 33. Qxc7 {[%clk 0:00:16]}  Rxc7 {[%clk 0:00:12]} 34. f3 {[%clk 0:00:16]}  g6 {[%clk 0:00:12]} 35. e4 {[%clk 0:00:16]}  Nh5 {[%clk 0:00:12]} 36. Rc5 {[%clk 0:00:15]}  Nxf4 {[%clk 0:00:12]} 37. Kf2 {[%clk 0:00:15]}  Kf8 {[%clk 0:00:11]} 38. Bf1 {[%clk 0:00:14]}  Ke7 {[%clk 0:00:11]} 39. Ke3 {[%clk 0:00:15]}  g5 {[%clk 0:00:12]} 40. Kd4 {[%clk 0:00:15]}  dxe4 {[%clk 0:00:10]} 41. fxe4 {[%clk 0:00:16]}  Ng6 {[%clk 0:00:09]} 42. e5 {[%clk 0:00:16]}  Ke8 {[%clk 0:00:09]} 43. Rc1 {[%clk 0:00:16]}  Ne7 {[%clk 0:00:10]} 44. Bg2 {[%clk 0:00:15]}  h5 {[%clk 0:00:09]} 45. Kc5 {[%clk 0:00:15]}  Kf8 {[%clk 0:00:08]} 46. Kb6 {[%clk 0:00:16]}  Rc8 {[%clk 0:00:08]} 47. c7 {[%clk 0:00:16]}  Kg7 {[%clk 0:00:08]} 48. Bb7 {[%clk 0:00:16]}  Rh8 {[%clk 0:00:09]} 49. Kc5 {[%clk 0:00:16]}  g4 {[%clk 0:00:08]} 50. Kd6 {[%clk 0:00:16]}  Nf5+ {[%clk 0:00:09]} 51. Kc5 {[%clk 0:00:16]}  h4 {[%clk 0:00:10]} 52. Kb6 {[%clk 0:00:16]}  g3 {[%clk 0:00:10]} 53. hxg3 {[%clk 0:00:16]}  hxg3 {[%clk 0:00:11]} 54. c8=Q {[%clk 0:00:17]}  Bxc8 {[%clk 0:00:11]} 55. Bxc8 {[%clk 0:00:18]}  Nd4 {[%clk 0:00:10]} 56. Bb7 {[%clk 0:00:18]}  Rh5 {[%clk 0:00:09]} 57. Rg1 {[%clk 0:00:18]}  Rg5 {[%clk 0:00:10]} 58. Kc7 {[%clk 0:00:18]}  Ne2 {[%clk 0:00:10]} 59. Rg2 {[%clk 0:00:18]}  Nf4 {[%clk 0:00:11]} 60. Rg1 {[%clk 0:00:18]}  Nh3 {[%clk 0:00:11]} 61. Rh1 {[%clk 0:00:17]}  Nf4 {[%clk 0:00:11]} 62. Kd7 {[%clk 0:00:16]}  Rxe5 {[%clk 0:00:11]} 63. Rg1 {[%clk 0:00:17]}  Rg5 {[%clk 0:00:12]} 64. Ke7 {[%clk 0:00:17]}  Nh3 {[%clk 0:00:12]} 65. Rh1 {[%clk 0:00:17]}  Nf4 {[%clk 0:00:12]} 66. Rg1 {[%clk 0:00:18]}  Ng6+ {[%clk 0:00:13]} 67. Ke8 {[%clk 0:00:18]}  f5 {[%clk 0:00:13]} 68. Kd7 {[%clk 0:00:16]}  f4 {[%clk 0:00:14]} 69. Ke6 {[%clk 0:00:17]}  Nh4 {[%clk 0:00:14]} 70. Rh1 {[%clk 0:00:17]}  g2 {[%clk 0:00:14]} 71. Bxg2 {[%clk 0:00:15]}  Nxg2 {[%clk 0:00:14]} 72. Rf1 {[%clk 0:00:15]}  Kg6 {[%clk 0:00:14]} 73. Rf2 {[%clk 0:00:16]}  Rg4 {[%clk 0:00:13]} 74. Kd5 {[%clk 0:00:15]}  Kf5 {[%clk 0:00:13]} 75. Rf1 {[%clk 0:00:16]}  Ne3+ {[%clk 0:00:13]} 0-1


[Site "https://www.chess.com"]

[Event "Titled Tuesday Blitz December 06 Late 2022"]
[White "Nepo"]
[Black "Reprintsev, Alexander"]
[BlackFideId "14100541"]
[WhiteElo "2216"]
[BlackElo "2230"]
[Result "1/2-1/2"]
[Round "02"]
[TimeControl "180+1"]
[Date "2022.12.07"]
[WhiteClock "0:00:21"]
[BlackClock "0:00:15"]

1. e4 {[%clk 0:02:55]}  d5 {[%clk 0:02:57]} 2. exd5 {[%clk 0:02:54]}  Qxd5 {[%clk 0:02:56]} 3. Nc3 {[%clk 0:02:54]}  Qa5 {[%clk 0:02:56]} 4. Nf3 {[%clk 0:02:52]}  Nf6 {[%clk 0:02:55]} 5. d4 {[%clk 0:02:49]}  Nc6 {[%clk 0:02:55]} 6. Be2 {[%clk 0:02:44]}  Bg4 {[%clk 0:02:54]} 7. h3 {[%clk 0:02:39]}  Bxf3 {[%clk 0:02:53]} 8. Bxf3 {[%clk 0:02:40]}  Rd8 {[%clk 0:02:53]} 9. Be3 {[%clk 0:02:37]}  Nxd4 {[%clk 0:02:19]} 10. Bxd4 {[%clk 0:02:33]}  e5 {[%clk 0:02:19]} 11. Qe2 {[%clk 0:01:57]}  Rxd4 {[%clk 0:02:15]} 12. Bxb7 {[%clk 0:01:51]}  Bb4 {[%clk 0:02:00]} 13. O-O {[%clk 0:01:28]}  O-O {[%clk 0:01:57]} 14. Ne4 {[%clk 0:01:23]}  Nxe4 {[%clk 0:01:36]} 15. Bxe4 {[%clk 0:01:24]}  Rd2 {[%clk 0:01:27]} 16. Qf3 {[%clk 0:01:15]}  g6 {[%clk 0:01:18]} 17. c3 {[%clk 0:01:15]}  Bd6 {[%clk 0:01:15]} 18. b4 {[%clk 0:01:13]}  Qa3 {[%clk 0:01:04]} 19. Bd5 {[%clk 0:01:02]}  Kg7 {[%clk 0:00:54]} 20. Bb3 {[%clk 0:00:57]}  Qa6 {[%clk 0:00:43]} 21. Rfd1 {[%clk 0:00:52]}  Rxd1+ {[%clk 0:00:36]} 22. Rxd1 {[%clk 0:00:53]}  Qb6 {[%clk 0:00:25]} 23. Qd5 {[%clk 0:00:28]}  h5 {[%clk 0:00:21]} 24. a3 {[%clk 0:00:24]}  Qb8 {[%clk 0:00:20]} 25. Bc2 {[%clk 0:00:23]}  Qa8 {[%clk 0:00:20]} 26. Qxa8 {[%clk 0:00:23]}  Rxa8 {[%clk 0:00:19]} 27. c4 {[%clk 0:00:23]}  a5 {[%clk 0:00:15]} 28. c5 {[%clk 0:00:24]}  Bf8 {[%clk 0:00:16]} 29. Rd7 {[%clk 0:00:24]}  axb4 {[%clk 0:00:16]} 30. axb4 {[%clk 0:00:25]}  Ra7 {[%clk 0:00:14]} 31. Bb3 {[%clk 0:00:25]}  Kh6 {[%clk 0:00:13]} 32. Rxf7 {[%clk 0:00:25]}  Bg7 {[%clk 0:00:13]} 33. b5 {[%clk 0:00:23]}  Ra3 {[%clk 0:00:12]} 34. Bd5 {[%clk 0:00:22]}  e4 {[%clk 0:00:12]} 35. Bxe4 {[%clk 0:00:22]}  Be5 {[%clk 0:00:13]} 36. g3 {[%clk 0:00:22]}  Rb3 {[%clk 0:00:12]} 37. Bc6 {[%clk 0:00:20]}  Rc3 {[%clk 0:00:12]} 38. Kg2 {[%clk 0:00:19]}  Rxc5 {[%clk 0:00:12]} 39. Re7 {[%clk 0:00:19]}  Bd6 {[%clk 0:00:12]} 40. Re6 {[%clk 0:00:19]}  Re5 {[%clk 0:00:10]} 41. Rxe5 {[%clk 0:00:19]}  Bxe5 {[%clk 0:00:10]} 42. f4 {[%clk 0:00:20]}  Bd4 {[%clk 0:00:11]} 43. Kf3 {[%clk 0:00:20]}  Kg7 {[%clk 0:00:11]} 44. g4 {[%clk 0:00:20]}  hxg4+ {[%clk 0:00:11]} 45. hxg4 {[%clk 0:00:21]}  Kf6 {[%clk 0:00:11]} 46. Ke4 {[%clk 0:00:22]}  Bb6 {[%clk 0:00:11]} 47. Kd5 {[%clk 0:00:22]}  Kg7 {[%clk 0:00:10]} 48. Ke6 {[%clk 0:00:22]}  Ba5 {[%clk 0:00:11]} 49. f5 {[%clk 0:00:22]}  gxf5 {[%clk 0:00:11]} 50. gxf5 {[%clk 0:00:23]}  Kf8 {[%clk 0:00:12]} 51. f6 {[%clk 0:00:23]}  Bb6 {[%clk 0:00:12]} 52. f7 {[%clk 0:00:22]}  Ba5 {[%clk 0:00:13]} 53. Be4 {[%clk 0:00:22]}  Bb6 {[%clk 0:00:13]} 54. Bd3 {[%clk 0:00:23]}  Ba5 {[%clk 0:00:14]} 55. Bc4 {[%clk 0:00:23]}  Bb6 {[%clk 0:00:14]} 56. Kd7 {[%clk 0:00:24]}  Ba5 {[%clk 0:00:15]} 57. Kc6 {[%clk 0:00:22]}  Bb6 {[%clk 0:00:15]} 58. Kd7 {[%clk 0:00:21]}  Ba5 {[%clk 0:00:15]} 1/2-1/2


[Site "https://www.chess.com"]

[Event "Titled Tuesday Blitz December 06 Late 2022"]
[White "O`Gorman, Tom"]
[Black "Yoo, Christopher Woojin"]
[WhiteFideId "2508249"]
[BlackFideId "30909694"]
[WhiteElo "2271"]
[BlackElo "2463"]
[Result "1-0"]
[Round "02"]
[TimeControl "180+1"]
[Date "2022.12.06"]
[WhiteClock "0:00:32"]
[BlackClock "0:00:01"]

1. d4 {[%clk 0:03:00]}  Nf6 {[%clk 0:02:48]} 2. c4 {[%clk 0:03:01]}  c5 {[%clk 0:02:47]} 3. d5 {[%clk 0:03:01]}  b5 {[%clk 0:02:44]} 4. cxb5 {[%clk 0:03:02]}  a6 {[%clk 0:02:45]} 5. e3 {[%clk 0:03:02]}  axb5 {[%clk 0:02:37]} 6. Bxb5 {[%clk 0:03:03]}  Ba6 {[%clk 0:02:37]} 7. Bxa6 {[%clk 0:02:54]}  Qa5+ {[%clk 0:02:36]} 8. Nc3 {[%clk 0:02:49]}  Qxa6 {[%clk 0:02:32]} 9. Nge2 {[%clk 0:02:40]}  g6 {[%clk 0:02:30]} 10. O-O {[%clk 0:02:40]}  Bg7 {[%clk 0:02:30]} 11. a4 {[%clk 0:02:38]}  O-O {[%clk 0:02:29]} 12. Nb5 {[%clk 0:02:34]}  Qb7 {[%clk 0:02:28]} 13. Nec3 {[%clk 0:02:32]}  d6 {[%clk 0:02:28]} 14. e4 {[%clk 0:02:28]}  Na6 {[%clk 0:02:29]} 15. Be3 {[%clk 0:02:25]}  Nb4 {[%clk 0:02:27]} 16. Qd2 {[%clk 0:02:24]}  Ng4 {[%clk 0:02:25]} 17. Bf4 {[%clk 0:02:24]}  Ne5 {[%clk 0:02:15]} 18. b3 {[%clk 0:02:20]}  f5 {[%clk 0:02:01]} 19. Rab1 {[%clk 0:02:11]}  fxe4 {[%clk 0:01:57]} 20. Bh6 {[%clk 0:02:03]}  Bxh6 {[%clk 0:01:05]} 21. Qxh6 {[%clk 0:02:04]}  Qd7 {[%clk 0:00:57]} 22. Qh4 {[%clk 0:01:54]}  Nbd3 {[%clk 0:00:49]} 23. Qxe4 {[%clk 0:01:43]}  Rf4 {[%clk 0:00:48]} 24. Qe3 {[%clk 0:01:43]}  Raf8 {[%clk 0:00:45]} 25. f3 {[%clk 0:01:38]}  Nb4 {[%clk 0:00:45]} 26. Rbd1 {[%clk 0:01:32]}  h5 {[%clk 0:00:31]} 27. Ne4 {[%clk 0:01:32]}  h4 {[%clk 0:00:29]} 28. Ng5 {[%clk 0:01:27]}  Nc2 {[%clk 0:00:19]} 29. Qe2 {[%clk 0:01:18]}  Nd4 {[%clk 0:00:11]} 30. Nxd4 {[%clk 0:01:18]}  Rxd4 {[%clk 0:00:12]} 31. Rxd4 {[%clk 0:01:08]}  cxd4 {[%clk 0:00:11]} 32. Ne6 {[%clk 0:01:09]}  d3 {[%clk 0:00:10]} 33. Qe4 {[%clk 0:01:06]}  Rf5 {[%clk 0:00:11]} 34. f4 {[%clk 0:01:05]}  Ng4 {[%clk 0:00:07]} 35. Qxd3 {[%clk 0:01:03]}  Qa7+ {[%clk 0:00:07]} 36. Qd4 {[%clk 0:00:59]}  Qxd4+ {[%clk 0:00:08]} 37. Nxd4 {[%clk 0:01:00]}  Rxd5 {[%clk 0:00:08]} 38. Nc6 {[%clk 0:00:57]}  Rd3 {[%clk 0:00:06]} 39. b4 {[%clk 0:00:55]}  Ne3 {[%clk 0:00:04]} 40. Re1 {[%clk 0:00:48]}  Kf7 {[%clk 0:00:03]} 41. a5 {[%clk 0:00:48]}  Nc2 {[%clk 0:00:03]} 42. Rxe7+ {[%clk 0:00:45]}  Kf6 {[%clk 0:00:03]} 43. Re2 {[%clk 0:00:43]}  Ne3 {[%clk 0:00:01]} 44. Re1 {[%clk 0:00:32]} 1-0


[Site "https://www.chess.com"]